fUSD/lending_fUSD_20250702
["ID","MTS","AMOUNT","RATE_DAILY","PERIOD"]
[369054656,1751446255044,-490.0,0.00016438,2]
[369054658,1751446255053,-151.0,0.00016438,2]
[369054660,1751446255063,-699.358155,0.00016438,2]
[369054662,1751446255072,-490.0,0.00016438,2]
[369054664,1751446255081,-151.0,0.00016438,2]
[369054666,1751446255090,-490.0,0.00016438,2]
[369054668,1751446255099,-490.0,0.00016438,2]
[369054670,1751446255108,-490.0,0.00016438,2]
[369054672,1751446255118,-490.0,0.00016438,2]
[369054674,1751446255127,-780.89,0.00016438,2]
[369054676,1751446255137,-151.0,0.00016438,2]
[369054678,1751446255146,-151.0,0.00016438,2]
[369054680,1751446255155,-151.0,0.00016438,2]
[369054682,1751446255164,-1500.0,0.00016438,2]
[369054684,1751446255174,-490.0,0.00016438,2]
[369054687,1751446255183,-1793.819529,0.00016438,2]
[369054688,1751446255194,-586.59140599,0.00016438,2]
[369054690,1751446255205,-1793.819529,0.00016438,2]
[369054692,1751446255215,-741.76,0.00016438,2]
[369054695,1751446255226,-1793.819529,0.00016438,2]
[369054696,1751446255235,-1441.49,0.00016438,2]
[369054698,1751446255244,-1793.819529,0.00016438,2]
[369054700,1751446255253,-490.0,0.00016438,2]
[369054702,1751446255262,-491.69625234,0.00016438,2]
[369054704,1751446255272,-331.60444597,0.00016438,2]
[369054706,1751446255281,-151.0,0.00016438,2]
[369054708,1751446255290,-2986.81,0.00016438,2]
[369054711,1751446255300,-151.0,0.00016438,2]
[369054713,1751446255310,-155.32441,0.00016438,2]
[369054715,1751446255320,-490.0,0.00016438,2]
[369054717,1751446255329,-527.81493419,0.00016438,2]
[369054719,1751446255339,-490.0,0.00016438,2]
[369054720,1751446255348,-490.0,0.00016438,2]
[369054722,1751446255357,-2267.03,0.00016438,2]
[369054724,1751446255367,-490.0,0.00016438,2]
[369054726,1751446255377,-1586.93,0.00016438,2]
[369054729,1751446255387,-1331.77,0.00016438,2]
[369054730,1751446255397,-490.0,0.00016438,2]
[369054733,1751446255407,-490.0,0.00016438,2]
[369054735,1751446255418,-490.0,0.00016438,2]
[369054737,1751446255428,-1922.26,0.00016438,2]
[369054739,1751446255437,-490.0,0.00016438,2]
[369054741,1751446255447,-151.0,0.00016438,2]
[369054743,1751446255456,-494.03132762,0.00016438,2]
[369054745,1751446255465,-490.0,0.00016438,2]
[369054747,1751446255474,-151.0,0.00016438,2]
[369054748,1751446255483,-6.76174461,0.00016438,2]
[369054832,1751446256403,-1133.45825539,0.00016438,2]
[369054834,1751446256413,-1142.43,0.00016438,2]
[369054836,1751446256424,-490.0,0.00016438,2]
[369054837,1751446256434,-233.98154638,0.00016438,2]
[369054839,1751446256444,-1530.62,0.00016438,2]
[369054842,1751446256454,-490.0,0.00016438,2]
[369054843,1751446256464,-490.0,0.00016438,2]
[369054845,1751446256475,-1098.51,0.00016438,2]
[369054848,1751446256485,-490.0,0.00016438,2]
[369054850,1751446256496,-490.0,0.00016438,2]
[369054852,1751446256506,-490.0,0.00016438,2]
[369054854,1751446256516,-2276.56,0.00016438,2]
[369054855,1751446256527,-490.0,0.00016438,2]
[369054858,1751446256536,-547.68,0.00016438,2]
[369054859,1751446256546,-2771.37,0.00016438,2]
[369054861,1751446256556,-1136.59,0.00016438,2]
[369054864,1751446256567,-1569.15,0.00016438,2]
[369054865,1751446256576,-490.0,0.00016438,2]
[369054868,1751446256586,-1245.25,0.00016438,2]
[369054870,1751446256596,-490.0,0.00016438,2]
[369054871,1751446256605,-500.0,0.00016438,2]
[369054873,1751446256614,-490.0,0.00016438,2]
[369054876,1751446256625,-490.0,0.00016438,2]
[369054878,1751446256634,-490.0,0.00016438,2]
[369054880,1751446256644,-1163.44,0.00016438,2]
[369054882,1751446256654,-490.0,0.00016438,2]
[369054883,1751446256663,-490.0,0.00016438,2]
[369054885,1751446256673,-1630.62,0.00016438,2]
[369054888,1751446256682,-490.0,0.00016438,2]
[369054889,1751446256694,-151.0,0.00016438,2]
[369054891,1751446256703,-1528.22,0.00016438,2]
[369054893,1751446256713,-490.0,0.00016438,2]
[369054896,1751446256723,-490.0,0.00016438,2]
[369054897,1751446256735,-255.83330819,0.00016438,2]
[369054900,1751446256745,-169.78606151,0.00016438,2]
[369054901,1751446256755,-1391.26,0.00016438,2]
[369054903,1751446256764,-490.0,0.00016438,2]
[369054905,1751446256774,-18145.68,0.00016438,2]
[369054907,1751446256783,-500.0,0.00016438,2]
[369054909,1751446256793,-2660.49,0.00016438,2]
[369054911,1751446256803,-1685.0,0.00016438,2]
[369054913,1751446256813,-490.0,0.00016438,2]
[369054915,1751446256822,-490.0,0.00016438,2]
[369054917,1751446256833,-490.0,0.00016438,2]
[369054919,1751446256844,-490.0,0.00016438,2]
[369054922,1751446256855,-490.0,0.00016438,2]
[369054924,1751446256864,-5957.89,0.00016438,2]
[369054926,1751446256873,-490.0,0.00016438,2]
[369054928,1751446256883,-490.0,0.00016438,2]
[369054929,1751446256892,-784.24,0.00016438,2]
[369054932,1751446256904,-957.11,0.00016438,2]
[369054934,1751446256914,-490.0,0.00016438,2]
[369054936,1751446256923,-490.0,0.00016438,2]
[369054938,1751446256933,-1085.19,0.00016438,2]
[369054940,1751446256942,-490.0,0.00016438,2]
[369054942,1751446256952,-1201.19,0.00016438,2]
[369054943,1751446256961,-260.03725118,0.00016438,2]
[369054945,1751446256970,-820.88,0.00016438,2]
[369054947,1751446256979,-490.0,0.00016438,2]
[369054950,1751446256990,-490.0,0.00016438,2]
[369054952,1751446256999,-441.59954794,0.00016438,2]
[369054954,1751446257008,-500.0,0.00016438,2]
[369054956,1751446257017,-490.0,0.00016438,2]
[369054958,1751446257026,-490.0,0.00016438,2]
[369054959,1751446257035,-490.0,0.00016438,2]
[369054961,1751446257044,-490.0,0.00016438,2]
[369054963,1751446257054,-2103.82,0.00016438,2]
[369054965,1751446257063,-490.0,0.00016438,2]
[369054968,1751446257072,-490.0,0.00016438,2]
[369054970,1751446257082,-2074.28,0.00016438,2]
[369054972,1751446257091,-493.02831789,0.00016438,2]
[369054974,1751446257100,-490.0,0.00016438,2]
[369054975,1751446257109,-150.0,0.00016438,2]
[369054977,1751446257119,-490.0,0.00016438,2]
[369054979,1751446257128,-490.0,0.00016438,2]
[369054981,1751446257137,-151.0,0.00016438,2]
[369054983,1751446257146,-151.891297,0.00016438,2]
[369054985,1751446257156,-151.0,0.00016438,2]
[369054987,1751446257164,-354.19749192,0.00016438,2]
[369054989,1751446257174,-151.0,0.00016438,2]
[369054991,1751446257183,-150.0,0.00016438,2]
[369054993,1751446257193,-512.61494404,0.00016438,2]
[369054995,1751446257202,-490.0,0.00016438,2]
[369055017,1751446257398,-490.0,0.00016438,2]
[369055019,1751446257408,-154.31332976,0.00016438,2]
[369055021,1751446257418,-1244.69,0.00016438,2]
[369055023,1751446257428,-490.0,0.00016438,2]
[369055025,1751446257437,-1680.4,0.00016438,2]
[369055027,1751446257447,-490.0,0.00016438,2]
[369055029,1751446257456,-490.0,0.00016438,2]
[369055031,1751446257465,-490.0,0.00016438,2]
[369055033,1751446257474,-490.0,0.00016438,2]
[369055035,1751446257484,-490.0,0.00016438,2]
[369055037,1751446257493,-490.0,0.00016438,2]
[369055039,1751446257502,-490.0,0.00016438,2]
[369055041,1751446257511,-490.0,0.00016438,2]
[369055043,1751446257521,-490.0,0.00016438,2]
[369055045,1751446257530,-301.67,0.00016438,2]
[369055047,1751446257540,-150.0,0.00016446,2]
[369055049,1751446257549,-168.34065762,0.00016455,2]
[369055051,1751446257558,-150.0,0.00016455,2]
[369055053,1751446257568,-1000.0,0.00016456,2]
[369055055,1751446257578,-151.0,0.00016459,2]
[369055058,1751446257587,-325.063988,0.00016459,2]
[369055060,1751446257597,-325.063988,0.00016459,2]
[369055061,1751446257606,-699.358155,0.00016459,2]
[369055063,1751446257615,-699.358155,0.00016459,2]
[369055065,1751446257624,-151.0,0.00016459,2]
[369055067,1751446257634,-1793.819529,0.00016459,2]
[369055069,1751446257643,-1793.819529,0.00016459,2]
[369055071,1751446257653,-1140.02477708,0.00016469,2]
[369055073,1751446257664,-150.0,0.00016469,2]
[369055075,1751446257674,-150.0,0.0001647,2]
[369055078,1751446257684,-1086.73,0.00016472,2]
[369055079,1751446257693,-514.2405018,0.00016472,2]
[369055081,1751446257702,-500.0,0.00016473,2]
[369055084,1751446257712,-500.0,0.00016473,2]
[369055086,1751446257722,-500.0,0.00016473,2]
[369055088,1751446257732,-500.0,0.00016473,2]
[369055090,1751446257742,-500.0,0.00016473,2]
[369055092,1751446257753,-500.0,0.00016473,2]
[369055094,1751446257765,-150.0,0.0001648,2]
[369055096,1751446257775,-150.80630564,0.00016482,2]
[369055098,1751446257784,-150.0,0.00016487,2]
[369055100,1751446257794,-1051.0,0.00016491,2]
[369055101,1751446257805,-150.0,0.00016493,2]
[369055103,1751446257815,-150.0,0.00016497,2]
[369055106,1751446257825,-836.11932155,0.00016497,2]
[369055108,1751446257836,-1006.9665,0.00016499,2]
[369055110,1751446257846,-1680.0,0.00016499,2]
[369055112,1751446257856,-150.0,0.00016503,2]
[369055114,1751446257865,-200.0,0.00016503,2]
[369055116,1751446257874,-1000.0,0.00016506,2]
[369055118,1751446257883,-150.0,0.0001651,2]
[369055120,1751446257893,-150.0,0.0001651,2]
[369055122,1751446257902,-150.0,0.00016518,2]
[369055124,1751446257913,-150.0,0.00016525,2]
[369055126,1751446257922,-150.0,0.00016526,2]
[369055128,1751446257933,-150.0,0.00016532,2]
[369055130,1751446257942,-150.0,0.00016533,2]
[369055132,1751446257951,-5571.33317262,0.00016533,2]
[369055134,1751446257961,-150.0,0.00016534,2]
[369055136,1751446257970,-425.56426065,0.00016536,2]
[369055140,1751446258003,-562.18766305,0.00016536,2]
[369055142,1751446258012,-3277.7617754,0.00016536,2]
[369055144,1751446258020,-2292.220789,0.00016536,2]
[369055146,1751446258030,-150.0,0.00016537,2]
[369055148,1751446258041,-151.0,0.00016539,2]
[369055150,1751446258050,-239.402178,0.00016539,2]
[369055151,1751446258059,-239.402178,0.00016539,2]
[369055152,1751446258068,-154.123652,0.00016539,2]
[369055153,1751446258077,-1069.6,0.0001654,2]
[369055154,1751446258087,-879.3,0.0001654,2]
[369055155,1751446258096,-490.0,0.00016541,2]
[369055156,1751446258106,-490.0,0.00016541,2]
[369055157,1751446258116,-490.0,0.00016541,2]
[369055158,1751446258126,-300.50176455,0.00016541,2]
[369055159,1751446258138,-189.49823545,0.00016541,2]
[369055160,1751446258147,-70.90836455,0.00016541,2]
[369055737,1751446264590,950.1239,0.00013532,2]
[369056484,1751446289701,202.99997,0.00013532,2]
[369056501,1751446432358,-151.0,0.00029,120]
[369056502,1751446432382,-49.0,0.00029,120]
[369056513,1751446652418,160.03,0.00013699,2]
[369056538,1751447385996,-3000.0,0.0002,30]
[369056539,1751447386039,-2000.0,0.00022,30]
[369056540,1751447386070,-422.10773495,0.00023,30]
[369056541,1751447386099,-349.975382,0.000247,30]
[369056542,1751447386127,-4872.0,0.00025,30]
[369056543,1751447386154,-836.11932155,0.00025,30]
[369056544,1751447386183,-162.08617243,0.00026849,30]
[369056545,1751447386209,-27684.71409447,0.0002739,30]
[369056546,1751447386241,-180.26,0.00027397,80]
[369056547,1751447386270,-127.0,0.00029,120]
[369056548,1751447386297,-800.0,0.00029998,30]
[369056549,1751447386322,-400.0,0.0003,120]
[369056550,1751447386347,-10000.0,0.0003,30]
[369056551,1751447386370,-499.948,0.0003,120]
[369056552,1751447386395,-836.11932155,0.0003,30]
[369056553,1751447386425,-152.32,0.000308,31]
[369056554,1751447386453,-152.32,0.000308,31]
[369056555,1751447386480,-152.32,0.000308,31]
[369056556,1751447386507,-152.32,0.000308,31]
[369056557,1751447386534,-152.32,0.000308,31]
[369056558,1751447386562,-152.32,0.000308,31]
[369056559,1751447386592,-152.32,0.000308,31]
[369056560,1751447386620,-152.32,0.000308,31]
[369056561,1751447386647,-27950.495969,0.000314,30]
[369056562,1751447386675,-152.32,0.000315,31]
[369056563,1751447386703,-152.32,0.000315,31]
[369056564,1751447386732,-152.32,0.000315,31]
[369056565,1751447386760,-152.32,0.000315,31]
[369056566,1751447386788,-152.32,0.000315,31]
[369056567,1751447386814,-152.32,0.000315,31]
[369056568,1751447386840,-152.32,0.000315,31]
[369056569,1751447386868,-152.32,0.000315,31]
[369056570,1751447386894,-152.32,0.000315,31]
[369056571,1751447386922,-152.32,0.000315,31]
[369056572,1751447386948,-152.32,0.000315,31]
[369056573,1751447386975,-152.32,0.000315,31]
[369056574,1751447387000,-180.26,0.00031963,80]
[369056575,1751447387026,-400.0,0.00032,120]
[369056576,1751447387054,-152.32,0.000322,31]
[369056577,1751447387081,-152.32,0.000322,31]
[369056578,1751447387109,-152.32,0.000322,31]
[369056579,1751447387135,-152.32,0.000322,31]
[369056580,1751447387162,-152.32,0.000322,31]
[369056581,1751447387191,-152.32,0.000322,31]
[369056582,1751447387219,-152.32,0.000322,31]
[369056583,1751447387247,-152.32,0.000322,31]
[369056584,1751447387275,-152.32,0.000322,31]
[369056585,1751447387302,-152.32,0.000322,31]
[369056586,1751447387330,-152.32,0.000322,31]
[369056587,1751447387356,-152.32,0.000322,31]
[369056588,1751447387381,-25983.68845428,0.00032299,30]
[369056589,1751447387406,-153.0,0.00032329,120]
[369056590,1751447387434,-152.32,0.000328,31]
[369056591,1751447387461,-152.32,0.000328,31]
[369056592,1751447387489,-152.32,0.000328,31]
[369056593,1751447387728,-152.32,0.000328,31]
[369056594,1751447387758,-152.32,0.000328,31]
[369056595,1751447387785,-152.32,0.000328,31]
[369056596,1751447387813,-152.32,0.000328,31]
[369056597,1751447387840,-152.32,0.000328,31]
[369056598,1751447387867,-152.32,0.000328,31]
[369056599,1751447387894,-152.32,0.000328,31]
[369056600,1751447387921,-152.32,0.000328,31]
[369056601,1751447387948,-152.32,0.000328,31]
[369056602,1751447387974,-1000.0,0.00033,120]
[369056603,1751447387998,-10000.0,0.00033,30]
[369056604,1751447388024,-3000.0,0.0003317,60]
[369056605,1751447388050,-800.0,0.00033444,31]
[369056606,1751447388077,-500.0,0.00033444,60]
[369056607,1751447388103,-600.0,0.00033444,60]
[369056608,1751447388133,-152.32,0.000335,31]
[369056609,1751447388162,-152.32,0.000335,31]
[369056610,1751447388194,-152.32,0.000335,31]
[369056611,1751447388224,-152.32,0.000335,31]
[369056612,1751447388252,-152.32,0.000335,31]
[369056613,1751447388280,-152.32,0.000335,31]
[369056614,1751447388306,-3000.0,0.00033718,60]
[369056615,1751447388336,-600.0,0.00033992,60]
[369056616,1751447388361,-400.0,0.00034,120]
[369056617,1751447388386,-1700.3526629,0.00034,35]
[369056618,1751447388410,-4615.9096171,0.00034,30]
[369056619,1751447388436,-5000.0,0.00034,120]
[369056620,1751447388465,-9416.23134549,0.00034141,30]
[369056621,1751447388491,-5000.0,0.000342,120]
[369056622,1751447388518,-5000.0,0.000344,120]
[369056623,1751447388544,-600.0,0.0003454,60]
[369056624,1751447388570,-500.0,0.0003454,60]
[369056625,1751447388596,-5000.0,0.000346,120]
[369056626,1751447388622,-150.0,0.00034731,30]
[369056627,1751447388648,-2008.81984682,0.00034731,30]
[369056628,1751447388674,-150.0,0.00034731,30]
[369056629,1751447388699,-666.22090267,0.00034731,30]
[369056630,1751447388935,-150.0,0.00034731,30]
[369056631,1751447388960,-1692.16965726,0.00034731,30]
[369056632,1751447388987,-150.0,0.00034731,30]
[369056633,1751447389012,-9984.77211297,0.00034731,30]
[369056634,1751447389038,-5000.0,0.000348,120]
[369056635,1751447389064,-3000.0,0.00034814,60]
[369056636,1751447389096,-9416.23134549,0.00034934,31]
[369056637,1751447389127,-343.3561113,0.00035,120]
[369056638,1751447389152,-9878.55717352,0.00035,33]
[369056639,1751447389180,-9878.55717352,0.00035,55]
[369056640,1751447389204,-509.79,0.00035,120]
[369056641,1751447389230,-2098.29933324,0.00035,120]
[369056642,1751447389255,-5000.0,0.00035,120]
[369056643,1751447389282,-900.0,0.00035,36]
[369056644,1751447389307,-612.0,0.00035,120]
[369056645,1751447389333,-21849.89889396,0.00035,50]
[369056646,1751447389361,-600.0,0.00035088,60]
[369056647,1751447389385,-176.0,0.000351,120]
[369056648,1751447389411,-5000.0,0.000352,120]
[369056649,1751447389438,-5000.0,0.000354,120]
[369056650,1751447389464,-151.0,0.000356,120]
[369056651,1751447389490,-5000.0,0.000356,120]
[369056652,1751447389514,-482.99,0.00035616,120]
[369056653,1751447389540,-600.0,0.00035636,60]
[369056654,1751447389565,-500.0,0.00035636,60]
[369056655,1751447389591,-535.16,0.00035644,30]
[369056656,1751447389618,-560.0,0.000357,30]
[369056657,1751447389648,-9416.23134549,0.00035728,33]
[369056658,1751447389673,-3000.0,0.000358,30]
[369056659,1751447389699,-5000.0,0.000358,120]
[369056660,1751447389725,-500.88,0.00035871,30]
[369056661,1751447389751,-370.41857,0.00035888,30]
[369056662,1751447389777,-3000.0,0.0003591,60]
[369056663,1751447389802,-2887.84608239,0.00035949,52]
[369056664,1751447389826,-49487.63204209,0.00036,30]
[369056665,1751447389852,-400.0,0.00036,120]
[369056666,1751447389877,-1015.0,0.00036,120]
[369056667,1751447389901,-900.0,0.00036,37]
[369056668,1751447389928,-158.5338098,0.00036,30]
[369056669,1751447389955,-25000.0,0.00036,120]
[369056670,1751447389979,-10000.0,0.00036,30]
[369056671,1751447390005,-163.0,0.00036,120]
[369056672,1751447390031,-370.41857,0.00036088,30]
[369056673,1751447390066,-370.41857,0.00036288,30]
[369056674,1751447390092,-5000.0,0.0003629,120]
[369056675,1751447390119,-150.0,0.00036373,120]
[369056676,1751447390146,-370.41857,0.00036488,30]
[369056677,1751447390173,-10000.0,0.000365,120]
[369056678,1751447390203,-9416.23134549,0.00036521,34]
[369056679,1751447390228,-180.26,0.0003653,120]
[369056680,1751447390254,-151.96,0.000366,120]
[369056681,1751447390279,-370.41857,0.00036688,30]
[369056682,1751447390304,-600.0,0.00036732,60]
[369056683,1751447390329,-500.0,0.00036732,60]
[369056684,1751447390354,-880.14017881,0.00036741,30]
[369056685,1751447390379,-800.0,0.00036798,31]
[369056686,1751447390405,-15366.64288178,0.0003688,120]
[369056687,1751447390429,-370.41857,0.00036888,30]
[369056688,1751447390455,-101853.48779902,0.000369,30]
[369056689,1751447390481,-1000.0,0.00036975,120]
[369056690,1751447390506,-1017.54,0.0003698,60]
[369056691,1751447390532,-54198.0,0.00037,30]
[369056692,1751447390559,-900.0,0.00037,38]
[369056693,1751447390585,-458.0,0.00037,120]
[369056694,1751447390611,-14800.0,0.00037,30]
[369056695,1751447390636,-200000.0,0.00037,30]
[369056696,1751447390660,-224.49259547,0.00037,120]
[369056697,1751447390686,-5000.0,0.00037,120]
[369056698,1751447390711,-5077.0,0.00037,117]
[369056699,1751447390738,-3000.0,0.00037006,60]
[369056700,1751447390763,-230.09519341,0.00037069,30]
[369056701,1751447390787,-238.60871557,0.00037069,32]
[369056702,1751447390812,-370.41857,0.00037088,30]
[369056703,1751447390838,-346.03900391,0.000372,120]
[369056704,1751447390863,-346.0390039,0.000372,120]
[369056705,1751447390888,-346.0390039,0.000372,120]
[369056706,1751447390914,-346.0390039,0.000372,120]
[369056707,1751447390940,-346.0390039,0.000372,120]
[369056708,1751447390965,-206.33422799,0.00037279,30]
[369056709,1751447390991,-300.0,0.00037279,30]
[369056710,1751447391015,-213.96859442,0.00037279,35]
[369056711,1751447391040,-221.88543242,0.00037279,45]
[369056712,1751447391066,-370.41857,0.00037288,30]
[369056713,1751447391093,-50000.0,0.00037298,30]
[369056714,1751447391119,-50000.0,0.00037298,31]
[369056715,1751447391146,-50000.0,0.00037298,32]
[369056716,1751447391174,-50000.0,0.00037298,33]
[369056717,1751447391203,-50000.0,0.00037298,34]
[369056718,1751447391228,-2685.95455441,0.00037298,31]
[369056719,1751447392083,-9416.23134549,0.00037314,36]
[369056720,1751447392108,-370.41857,0.00037488,30]
[369056721,1751447392133,-10000.0,0.000375,120]
[369056722,1751447392157,-370.41857,0.00037688,30]
[369056723,1751447392183,-600.0,0.00037828,60]
[369056724,1751447392208,-500.0,0.00037828,60]
[369056725,1751447392234,-514.0,0.00037847,31]
[369056726,1751447392257,-370.41857,0.00037888,30]
[369056727,1751447392281,-90000.0,0.00038,30]
[369056728,1751447392304,-900.0,0.00038,39]
[369056729,1751447392328,-487.27,0.00038,30]
[369056730,1751447392351,-5919.67933683,0.00038,30]
[369056731,1751447392375,-400.0,0.00038,120]
[369056732,1751447392399,-5000.0,0.00038,120]
[369056733,1751447392426,-370.41857,0.00038088,30]
[369056734,1751447392450,-3000.0,0.00038102,60]
[369056735,1751447392478,-9416.23134549,0.00038107,38]
[369056736,1751447392502,-370.41857,0.00038288,30]
[369056737,1751447392527,-1000.0,0.00038356,120]
[369056738,1751447392552,-948.8587529,0.00038356,120]
[369056739,1751447392578,-999.0,0.00038356,120]
[369056740,1751447392604,-1309.01743792,0.000384,33]
[369056741,1751447392630,-156.83547672,0.000384,33]
[369056742,1751447392655,-370.41857,0.00038488,30]
[369056743,1751447392683,-1622.070211,0.00038498,120]
[369056744,1751447392708,-852.86941882,0.000385,30]
[369056745,1751447392734,-10000.0,0.000385,120]
[369056746,1751447392759,-990.0,0.000385,120]
[369056747,1751447392784,-410.58889905,0.00038646,30]
[369056748,1751447392808,-378.93032422,0.00038646,30]
[369056749,1751447392835,-370.41857,0.00038688,30]
[369056750,1751447392861,-867033.65188,0.000388,120]
[369056751,1751447392885,-383.39437781,0.000389,120]
[369056752,1751447392914,-9416.23134549,0.000389,39]
[369056753,1751447392938,-600.0,0.00038924,60]
[369056754,1751447392963,-500.0,0.00038924,60]
[369056755,1751447392988,-539421.9971685,0.0003899,60]
[369056756,1751447393012,-900.0,0.00039,40]
[369056757,1751447393036,-629.0,0.00039,30]
[369056758,1751447393062,-1000.0,0.00039,30]
[369056759,1751447393086,-171.64408132,0.00039,120]
[369056760,1751447393111,-100000.0,0.00039,60]
[369056761,1751447393136,-5000.0,0.00039,120]
[369056762,1751447393161,-370.41857,0.00039088,30]
[369056763,1751447393187,-3000.0,0.00039198,60]
[369056764,1751447393213,-370.41857,0.00039288,30]
[369056765,1751447393241,-2671.0,0.00039398,54]
[369056766,1751447393269,-370.41857,0.00039488,30]
[369056767,1751447393293,-10000.0,0.000395,120]
[369056768,1751447393318,-370.41857,0.00039688,30]
[369056769,1751447393345,-999.0,0.00039726,120]
[369056770,1751447393369,-419.54190133,0.0003975,30]
[369056771,1751447393393,-624.08141425,0.000398,120]
[369056772,1751447393418,-1000000.0,0.000398,120]
[369056773,1751447393444,-2000.0,0.0003986,39]
[369056774,1751447393469,-370.41857,0.00039888,30]
[369056775,1751447393494,-216.2087787,0.000399,120]
[369056776,1751447393520,-859.459,0.00039901,56]
[369056777,1751447393546,-2616.0,0.00039965,50]
[369056778,1751447393570,-477.12749073,0.0004,30]
[369056779,1751447393595,-201.15318408,0.0004,30]
[369056780,1751447393619,-824538.05273287,0.0004,30]
[369056781,1751447393645,-17429.18406678,0.0004,30]
[369056782,1751447393670,-500.0,0.0004,30]
[369056783,1751447393696,-300.0,0.0004,30]
[369056784,1751447393724,-520.16410647,0.0004,30]
[369056785,1751447393757,-4036.38818368,0.0004,30]
[369056786,1751447393793,-10000.0,0.0004,30]
[369056787,1751447393832,-101669.81,0.0004,30]
[369056788,1751447393873,-900.0,0.0004,41]
[369056789,1751447393897,-1422.49994476,0.0004,30]
[369056790,1751447393922,-500.0,0.0004,30]
[369056791,1751447393946,-750.0,0.0004,30]
[369056792,1751447393969,-10000.0,0.0004,30]
[369056793,1751447393994,-369.88342022,0.0004,30]
[369056794,1751447394019,-531.65757093,0.0004,30]
[369056795,1751447394045,-197.30140343,0.0004,30]
[369056796,1751447394070,-193465.07219299,0.0004,30]
[369056797,1751447394098,-1000.0,0.0004,120]
[369056798,1751447394125,-1000.0,0.0004,120]
[369056799,1751447394306,-201.34582276,0.0004,120]
[369056800,1751447394383,-282.10237437,0.0004,120]
[369056801,1751447394410,-400.0,0.0004,120]
[369056802,1751447394435,-438.90537341,0.0004,120]
[369056803,1751447394460,-47618.17779214,0.0004,120]
[369056805,1751447421818,-160.72457097,0.00037199,90]
[369056806,1751447422533,-999.0,0.00038356,120]
[369056807,1751447422566,-999.0,0.00039726,120]
[369056808,1751447422597,-52460.44125006,0.0004,120]
[369056809,1751447422816,-200000.0,0.0004,60]
[369056810,1751447422846,-1439.0,0.0004,120]
[369056811,1751447422874,-2120.81,0.0004,120]
[369056812,1751447422904,-1005.83689199,0.0004,30]
[369056813,1751447422932,-911.13242064,0.0004,120]
[369056814,1751447422958,-230.95900525,0.0004,120]
[369056815,1751447422985,-2995.74163424,0.0004,120]
[369056816,1751447423013,-242.0,0.0004,120]
[369056817,1751447423041,-5000.0,0.0004,120]
[369056818,1751447423069,-1000.0,0.0004,120]
[369056819,1751447423096,-1000.0,0.0004,120]
[369056820,1751447423123,-1000.0,0.0004,120]
[369056821,1751447423149,-1000.0,0.0004,120]
[369056822,1751447423177,-782.1,0.0004,120]
[369056823,1751447423204,-316.76388453,0.0004,120]
[369056824,1751447423233,-22500.0,0.0004,120]
[369056825,1751447423260,-15000.0,0.0004,120]
[369056826,1751447423288,-15000.0,0.0004,120]
[369056827,1751447423314,-15000.0,0.0004,120]